bitfinex/quotes_ETHUSD_20250730
["timestamp","ask_amount","ask_price","bid_price","bid_amount"]
[1753901103538,33.132,3798.3,3798.2,4.391]
[1753901103748,34.85267369,3798.3,3798.2,4.391]
[1753901104760,34.85267369,3798.3,3798.1,0.04]
[1753901104761,3.55,3798.2,3798.1,0.04]
[1753901104959,0.57634976,3798.2,3798.1,4.431]
[1753901105162,33.55,3798.2,3798.1,4.431]
[1753901105528,34.5116,3798.2,3798.1,4.431]
[1753901105740,37.08186461,3798.2,3798.1,4.431]
[1753901106318,37.08186461,3798.2,3798.1,0.04]
[1753901106915,5.57026461,3798.2,3798.1,4.431]
[1753901107117,3.0,3798.2,3798.1,4.431]
[1753901108214,33.0,3798.2,3798.1,4.431]
[1753901108678,33.55,3798.2,3798.1,4.431]
[1753901108886,3.0,3798.2,3798.1,0.04]
[1753901109055,33.0,3798.2,3798.1,0.04]
[1753901109259,36.12026461,3798.2,3798.1,0.04]
[1753901109938,6.12026461,3798.2,3798.1,0.04]
[1753901110139,3.0,3798.2,3798.1,0.04]
[1753901111754,3.0,3798.2,3798.1,1.0166]
[1753901112142,3.0,3798.2,3798.1,0.04]
[1753901113456,33.0,3798.2,3798.1,4.431]
[1753901113877,33.55,3798.2,3798.1,4.431]
[1753901114095,5.57026461,3798.2,3798.1,4.431]
[1753901114266,3.0,3798.2,3798.1,4.431]
[1753901115703,0.132,3798.3,3798.1,4.431]
[1753901115909,0.3275242,3798.3,3797.8,0.132]
[1753901116115,2.63382166,3796.8,3795.3,1.09442464]
[1753901116298,0.55,3797.2,3795.9,4.458]
[1753901116299,30.132,3796.2,3795.9,4.458]
[1753901116499,33.682,3796.2,3795.9,4.458]
[1753901116811,36.31621316,3796.2,3795.3,0.001]
[1753901117188,37.27171316,3796.2,3795.3,0.001]
[1753901117448,37.67534252,3796.2,3795.3,0.001]
[1753901117722,39.84197777,3796.2,3795.3,0.001]
[1753901118020,40.24560713,3796.2,3795.3,0.001]
[1753901119073,9.84197777,3796.2,3795.3,0.001]
[1753901119411,34.8334982,3796.2,3795.3,0.001]
[1753901119588,37.46771136,3796.2,3795.3,0.001]
[1753901119988,34.6375,3796.2,3795.3,0.001]
[1753901120220,34.0875,3796.2,3795.3,0.001]
[1753901120513,0.132,3796.2,3795.3,0.001]
[1753901120673,0.132,3796.2,3796.0,4.452]
[1753901122475,0.26388,3799.1,3796.1,6.11478048]
[1753901122728,30.0,3798.6,3796.2,0.9033]
[1753901122892,0.132,3796.9,3796.3,0.1451603]
[1753901123323,0.132,3796.9,3796.3,0.132]
[1753901123631,0.132,3796.8,3796.4,4.446]
[1753901124276,0.132,3796.8,3796.2,0.9033]
[1753901124527,0.03291465,3797.7,3796.3,4.444]
[1753901124528,0.132,3796.4,3796.3,4.444]
[1753901124710,0.132,3796.4,3796.3,4.441]
[1753901125187,30.0,3798.7,3796.3,4.45417487]
[1753901125384,0.132,3797.0,3796.3,4.573]
[1753901125594,0.55,3798.2,3796.3,4.441]
[1753901125775,0.132,3796.8,3796.4,2.63402275]
[1753901125977,0.132,3797.4,3796.9,0.132]
[1753901126208,0.132,3797.4,3797.0,4.439]
[1753901127709,3.55,3798.4,3797.0,4.439]
[1753901127908,0.132,3797.2,3797.0,4.439]
[1753901129010,0.55,3798.7,3797.0,4.439]
[1753901129210,0.132,3797.3,3797.0,4.439]
[1753901130903,0.132,3797.3,3797.1,0.013161]
[1753901131102,0.002,3797.5,3797.2,9.76521275]
[1753901131311,0.002,3797.5,3797.2,7.13170214]
[1753901131475,0.002,3797.5,3797.4,0.132]
[1753901132421,0.002,3797.5,3797.4,4.552]
[1753901133630,0.002,3797.5,3797.4,4.5651558]
[1753901134099,0.002,3797.5,3797.4,7.18538073]
[1753901134299,0.002,3797.5,3797.4,11.66428073]
[1753901134610,0.04,3798.9,3798.4,2.63264197]
[1753901134809,0.04,3798.9,3798.8,0.132]
[1753901134979,0.04,3798.9,3798.8,0.14513153]
[1753901135183,0.04,3798.9,3798.8,0.132]
[1753901135609,0.04,3798.9,3798.8,3.75641023]
[1753901135819,0.04,3798.9,3798.8,4.31954176]
[1753901136196,0.04,3798.9,3798.8,3.76954176]
[1753901136405,0.04,3798.9,3798.8,4.31954176]
[1753901136611,0.04,3800.9,3799.2,4.16623308]
[1753901136793,0.04,3800.9,3799.2,14.64083522]
[1753901137015,0.04,3800.9,3799.2,14.77283522]
[1753901137216,0.04,3800.9,3799.8,9.63391959]
[1753901137525,0.04,3800.9,3799.8,14.59491959]
[1753901137834,0.04,3800.9,3799.8,14.72611959]
[1753901138300,0.04,3800.9,3799.8,14.17111959]
[1753901139088,0.04,3800.9,3799.8,11.53940214]
[1753901139524,0.04,3800.9,3799.8,14.17111959]
[1753901139701,0.04,3800.9,3799.8,11.53940214]
[1753901140028,0.04,3800.9,3800.6,2.63114361]
[1753901140232,0.04,3800.9,3800.8,0.9188]
[1753901140541,0.04,3800.9,3800.8,1.05]
[1753901140709,0.04,3800.9,3800.8,5.4650969]
[1753901141037,0.04,3800.9,3800.8,8.08302504]
[1753901141530,0.04,3800.9,3800.8,8.10142504]
[1753901142240,0.03736766,3800.9,3800.8,5.4674]
[1753901142447,0.03736766,3800.9,3800.8,8.64842504]
[1753901142735,0.03736766,3800.9,3800.8,11.64842504]
[1753901143432,0.03736766,3800.9,3800.8,6.69942504]
[1753901143638,0.03736766,3800.9,3800.8,11.09642504]
[1753901143927,0.03736766,3800.9,3800.8,5.4634]
[1753901144286,0.03736766,3800.9,3800.8,1.0684]
[1753901144492,0.03736766,3800.9,3800.8,0.1312]
[1753901144724,0.03736766,3800.9,3800.8,4.5252]
[1753901145427,0.03736766,3800.9,3800.8,0.1312]
[1753901145630,0.03736766,3800.9,3800.8,4.392]
[1753901146106,0.03736766,3800.9,3800.8,4.391]
[1753901146820,0.94296766,3800.9,3800.8,4.391]
[1753901148468,34.49296766,3800.9,3800.8,4.391]
[1753901148674,37.06323227,3800.9,3800.8,4.391]
[1753901149131,7.06323227,3800.9,3800.8,4.391]
[1753901149333,4.49296766,3800.9,3800.8,4.391]
[1753901149528,33.94296766,3800.9,3800.8,4.391]
[1753901149730,0.03736766,3800.9,3800.8,4.391]
[1753901152171,0.03736766,3800.9,3800.8,4.5222]
[1753901152552,0.03736766,3800.9,3800.8,0.1312]
[1753901152718,0.03736766,3800.9,3800.8,4.5212]
[1753901153028,0.16856766,3800.9,3800.8,4.39]
[1753901154466,0.17056766,3800.9,3800.8,4.39]
[1753901154665,0.17056766,3800.9,3800.5,0.01309794]
[1753901154865,0.17056766,3800.9,3800.6,4.39]
[1753901155076,0.17056766,3800.9,3800.7,4.39]
[1753901155287,0.03936766,3800.9,3800.7,4.39]
[1753901155577,0.1312,3800.8,3800.7,4.39]
[1753901157366,0.1312,3800.8,3800.4,6.328]
[1753901157550,30.03288781,3800.8,3800.5,4.39]
[1753901157751,2.57026461,3800.7,3800.5,4.39]
[1753901157951,2.57026461,3800.7,3800.4,6.328]
[1753901157952,0.1312,3800.6,3800.4,6.328]
[1753901158128,0.6812,3800.6,3800.5,4.39]
[1753901158688,0.55,3800.5,3800.4,6.328]
[1753901158895,1.513,3800.5,3799.9,4.39]
[1753901159127,30.0,3799.0,3797.3,6.324]
[1753901159245,3.0,3798.7,3798.2,4.39]
[1753901159802,0.132,3798.3,3798.2,4.39]
[1753901160392,0.963,3798.9,3798.2,4.39]
[1753901160702,0.132,3798.4,3798.2,4.39]
[1753901161065,0.55,3799.6,3798.3,0.91544089]
[1753901161251,0.45096,3799.5,3798.3,0.91544089]
[1753901161449,3.0,3799.3,3798.3,0.9023]
[1753901161684,1.4567,3799.1,3797.8,0.9023]
[1753901162004,30.0,3799.0,3798.4,4.389]
[1753901162163,0.9067,3799.1,3797.7,0.01313742]
[1753901162363,0.132,3798.4,3798.2,4.4031388]
[1753901162783,0.132,3798.6,3798.2,4.39]
[1753901164079,4.5887,3798.3,3798.1,0.04]
[1753901164267,33.55,3798.2,3798.1,0.04]
[1753901164461,33.55,3798.2,3798.1,4.43]
[1753901165415,39.14511485,3798.2,3798.1,0.04]
[1753901165619,41.71537946,3798.2,3798.1,4.43]
[1753901166263,8.59511485,3798.2,3798.1,4.43]
[1753901166469,38.59511485,3798.2,3798.1,4.43]
[1753901166671,8.59511485,3798.2,3798.1,4.43]
[1753901167126,38.59511485,3798.2,3798.1,4.43]
[1753901167428,5.59511485,3798.2,3798.1,4.43]
[1753901168720,0.9215,3799.3,3798.1,4.43]
[1753901168968,0.002,3801.3,3798.1,4.43]
[1753901168969,0.9215,3800.3,3798.7,2.63242907]
[1753901169120,30.0,3800.2,3798.8,4.40412252]
[1753901169474,30.0,3800.2,3798.8,4.391]
[1753901169673,30.0,3800.2,3798.8,7.0233991]
[1753901169889,30.0,3800.2,3798.8,4.391]
[1753901170110,30.0,3800.2,3798.8,7.02339033]
[1753901170495,30.0,3800.2,3798.9,0.01312217]
[1753901170699,30.0,3800.2,3798.8,7.02335534]
[1753901170900,30.0,3800.2,3798.7,0.9636]
[1753901171106,0.55,3800.1,3798.7,0.9636]
[1753901171291,3.55,3799.5,3798.1,0.04]
[1753901171499,0.55,3798.9,3798.1,0.04]
[1753901171814,0.9282,3799.0,3798.1,0.04]
[1753901171815,30.55,3798.3,3798.1,0.04]
[1753901171982,30.0,3798.0,3797.9,4.39]
[1753901172338,30.0,3798.0,3797.1,0.04]
[1753901172339,3.55,3797.7,3797.1,0.04]
[1753901172493,34.4887,3797.4,3797.3,4.39]
[1753901172982,36.18351943,3797.2,3797.1,0.04]
[1753901173183,37.08236461,3797.2,3797.1,0.04]
[1753901174684,7.08236461,3797.2,3797.1,0.04]
[1753901174878,34.5121,3797.2,3797.1,0.04]
[1753901175283,41.5121,3797.2,3797.1,0.04]
[1753901176290,41.6441,3797.2,3797.1,0.04]
[1753901176611,34.6441,3797.2,3797.1,0.041]
[1753901176981,4.0941,3797.2,3797.1,0.041]
[1753901177179,3.132,3797.2,3797.1,0.041]
[1753901177382,0.132,3797.2,3797.1,0.041]
[1753901178008,30.132,3797.2,3797.1,0.041]
[1753901178220,36.25226461,3797.2,3797.1,0.041]
[1753901178724,6.25226461,3797.2,3797.1,0.041]
[1753901178905,33.682,3797.2,3797.1,0.041]
[1753901179938,3.682,3797.2,3797.1,0.041]
[1753901180081,33.682,3797.2,3797.1,0.041]
[1753901180515,34.5981,3797.2,3797.1,0.041]
[1753901183390,37.23161943,3797.2,3797.1,0.041]
[1753901183591,39.80188404,3797.2,3797.1,0.041]
[1753901185224,45.39699889,3797.2,3797.1,0.041]
[1753901185600,3.18379688,3796.8,3796.7,0.001]
[1753901185799,34.633,3796.8,3796.7,0.001]
[1753901186606,37.26679688,3796.8,3796.7,0.001]
[1753901186808,39.83706149,3796.8,3796.7,0.001]
[1753901187114,9.83706149,3796.8,3796.7,0.001]
[1753901187296,39.83706149,3796.8,3796.7,0.001]
[1753901188704,37.20326461,3796.8,3796.7,0.001]
[1753901188906,36.65326461,3796.8,3796.7,0.001]
[1753901189107,37.20326461,3796.8,3796.7,0.001]
[1753901189508,36.65326461,3796.8,3796.7,0.001]
[1753901189708,42.20737946,3796.8,3796.7,0.001]
[1753901189932,5.68611485,3796.8,3796.7,0.001]
[1753901190133,35.68611485,3796.8,3796.7,0.001]
[1753901190296,39.23611485,3796.8,3796.7,0.001]
[1753901191731,41.86991173,3796.8,3796.7,0.001]
[1753901191935,45.38627634,3796.8,3796.7,0.001]
[1753901192142,42.75247946,3796.8,3796.7,0.001]
[1753901192310,12.75247946,3796.8,3796.7,0.001]
[1753901192670,42.81601173,3796.8,3796.7,0.001]
[1753901192939,34.13581316,3796.2,3796.1,0.041]
[1753901193109,42.68892801,3796.2,3796.1,0.041]
[1753901193434,42.82092801,3796.2,3796.1,0.041]
[1753901193608,56.78219262,3796.2,3796.1,0.041]
[1753901194110,33.18449075,3795.8,3795.7,1e-08]
[1753901194313,0.55,3794.8,3794.7,1e-08]
[1753901194513,39.23511485,3794.8,3794.7,1e-08]
[1753901194824,44.44056444,3794.8,3794.7,1e-08]
[1753901195024,41.80537946,3794.8,3794.7,1e-08]
[1753901195401,44.44056444,3794.8,3794.7,1e-08]
[1753901196738,56.73016444,3794.8,3794.7,1e-08]
[1753901197346,37.1665017,3794.2,3793.1,0.041]
[1753901197524,41.5575017,3794.2,3793.1,0.041]
[1753901197701,37.2985017,3794.2,3793.1,0.041]
[1753901198035,41.6905017,3794.2,3793.1,0.041]
[1753901198233,47.24361655,3794.2,3793.1,0.041]
[1753901198412,49.81388116,3794.2,3793.1,0.041]
[1753901198810,3.18629653,3793.2,3793.1,0.041]
[1753901199000,34.6012,3793.2,3793.1,0.041]
[1753901199201,37.23749653,3793.2,3793.1,0.041]
[1753901199736,48.62849653,3793.2,3793.1,0.041]
[1753901199903,51.19876114,3793.2,3793.1,0.041]
[1753901202942,31.5214,3792.2,3792.1,0.04]
[1753901203251,37.29039171,3792.2,3792.1,0.04]
[1753901203866,43.22889043,3792.2,3792.1,0.04]
[1753901204011,30.55,3791.2,3791.1,0.041]
[1753901204205,36.31968727,3791.2,3791.1,0.041]
[1753901204445,33.682,3791.2,3791.1,0.041]
[1753901204964,40.682,3791.2,3791.1,0.041]
[1753901205868,43.31968727,3791.2,3791.1,0.041]
[1753901206012,45.88995188,3791.2,3791.1,0.041]
[1753901206758,45.88995188,3791.2,3791.1,1e-08]
[1753901206759,50.28195188,3791.2,3791.1,1e-08]
[1753901207065,3.55,3790.2,3790.1,0.04]
[1753901207224,33.55,3790.2,3790.1,0.04]
[1753901207424,36.25226461,3790.2,3790.1,0.04]
[1753901207949,38.8906478,3790.2,3790.1,0.04]
[1753901208437,3.55,3789.3,3789.1,0.04]
[1753901208637,34.6428,3789.2,3789.1,0.04]
[1753901209443,37.48392417,3789.2,3789.1,0.04]
[1753901209760,40.05418878,3789.2,3789.1,0.04]
[1753901209971,2.63957603,3788.5,3788.1,0.04]
[1753901210138,3.55,3788.2,3788.1,0.04]
[1753901210322,38.076,3788.2,3788.1,0.04]
[1753901211470,33.682,3788.2,3788.1,0.04]
[1753901211760,43.25226461,3788.2,3788.1,0.04]
[1753901212336,37.132,3788.2,3788.1,0.04]
[1753901212842,40.132,3788.2,3788.1,0.04]
[1753901213038,10.132,3788.2,3788.1,0.04]
[1753901213229,7.132,3788.2,3788.1,0.04]
[1753901214093,40.682,3788.2,3788.1,0.04]
[1753901214248,43.25226461,3788.2,3788.1,0.04]
[1753901214821,10.0,3788.2,3788.1,0.04]
[1753901215271,40.0,3788.2,3788.1,0.04]
[1753901215484,40.55,3788.2,3788.1,0.04]
[1753901216608,10.55,3788.2,3788.1,0.04]
[1753901217980,40.55,3788.2,3788.1,0.04]
[1753901218179,36.12026461,3788.2,3788.1,0.04]
[1753901218475,3.0,3788.2,3788.1,1.0143]
[1753901218845,30.0,3789.3,3788.1,1.0143]
[1753901219139,30.0,3789.5,3788.1,1.0153]
[1753901219341,30.0,3790.4,3788.2,0.01330803]
[1753901219553,4.395,3790.3,3788.3,0.8994]
[1753901219757,4.395,3790.3,3788.1,0.05430803]
[1753901219758,30.0,3790.1,3788.5,0.8994]
[1753901219965,30.0,3789.9,3788.5,0.8994]
[1753901220164,30.0,3790.1,3788.4,7.03462826]
[1753901220445,30.0,3789.9,3788.7,0.9737]
[1753901220781,0.03298153,3790.0,3788.7,0.9737]
[1753901220782,0.55,3789.3,3788.7,0.9737]
[1753901220982,30.0,3789.0,3788.7,0.9737]
[1753901221685,30.55,3789.7,3788.7,0.9737]
[1753901221846,30.0,3789.5,3788.7,0.9737]
[1753901222053,30.0,3790.1,3788.7,0.9737]
[1753901222279,30.0,3789.9,3788.7,5.3677]
[1753901222474,30.0,3790.1,3788.7,5.5017]
[1753901222679,4.394,3790.5,3788.9,0.9472]
[1753901222982,5.55211484,3790.4,3789.1,0.9472]
[1753901223183,30.0,3790.7,3789.2,0.9321]
[1753901223384,30.0,3790.7,3789.4,0.9321]
[1753901223688,30.0,3790.5,3789.4,0.9321]
[1753901223992,2.16282432,3790.6,3789.4,0.9321]
[1753901224193,3.0,3790.2,3789.4,0.9321]
[1753901224387,30.0,3789.8,3789.4,0.9321]
[1753901224688,3.55,3789.7,3789.1,4.394]
[1753901224850,0.55,3789.1,3788.8,0.978]
[1753901225053,0.132,3788.9,3788.8,0.978]
[1753901226274,0.132,3788.9,3788.8,5.371]
[1753901227660,7.132,3788.9,3788.8,5.371]
[1753901228395,7.132,3788.9,3788.8,4.393]
[1753901228695,33.0,3788.8,3788.5,4.392]
[1753901228864,3.55,3788.6,3788.5,4.392]
[1753901229066,3.132,3788.6,3788.5,4.392]
[1753901229512,3.132,3788.6,3788.5,5.2987]
[1753901229691,3.0,3788.5,3788.4,4.392]
[1753901229889,0.132,3788.5,3788.1,0.9477]
[1753901230217,33.0,3788.2,3788.1,4.433]
[1753901230408,3.0,3788.2,3788.1,4.433]
[1753901230902,3.55,3789.1,3788.2,0.9809]
[1753901231078,3.0,3788.8,3788.2,0.9809]
[1753901231277,3.0,3788.6,3788.3,4.392]
[1753901231493,30.0,3789.2,3788.3,4.392]
[1753901231787,30.0,3789.0,3788.3,4.392]
[1753901232522,30.0,3789.6,3788.4,0.01330941]
[1753901232820,3.0,3790.1,3788.5,0.9564]
[1753901232978,30.0,3789.9,3788.6,4.40529967]
[1753901233179,30.0,3790.4,3788.8,0.9627]
[1753901233516,5.55211484,3790.5,3789.2,0.9627]
[1753901233818,0.04,3790.9,3790.2,6.07483439]
[1753901233989,0.04,3790.9,3790.4,0.9627]
[1753901234177,0.04,3790.9,3790.4,0.9759746]
[1753901234519,0.002,3791.2,3790.8,9.63359999]
[1753901234677,0.002,3791.2,3791.1,3.55855685]
[1753901234880,0.002,3791.2,3791.1,7.96382205]
[1753901235080,0.04,3791.9,3791.5,2.63747857]
[1753901235378,0.04,3791.9,3791.5,0.9632]
[1753901235817,0.04,3791.9,3791.5,5.3542]
[1753901235989,0.04,3791.9,3791.5,0.9632]
[1753901236397,0.04,3791.9,3791.5,5.3542]
[1753901237491,0.04,3791.9,3791.5,0.9632]
[1753901237817,0.55,3791.8,3789.5,0.8955]
[1753901238001,3.0,3791.4,3790.0,0.8955]
[1753901238521,0.55,3791.8,3790.1,0.9534]
[1753901238720,3.0,3791.4,3790.2,4.39]
[1753901238934,0.55,3791.2,3790.1,0.9534]
[1753901239076,0.55,3790.7,3789.3,6.344]
[1753901239278,3.0,3790.5,3789.4,5.2987]
[1753901239531,0.55,3791.3,3789.4,5.2987]
[1753901239827,30.0,3790.8,3789.4,5.2987]
[1753901239984,0.55,3790.9,3789.5,0.01328539]
[1753901240179,0.132,3789.7,3789.5,0.01328539]
[1753901240384,0.132,3789.7,3789.5,0.01329234]
[1753901240636,0.132,3789.7,3789.4,5.2987]
[1753901240928,0.132,3789.7,3789.5,4.40229304]
[1753901241503,0.55,3791.5,3789.5,4.40229304]
[1753901241830,0.132,3789.8,3789.5,4.40229304]
[1753901242318,0.132,3789.8,3789.5,4.389]
[1753901242536,0.132,3789.8,3789.4,0.9087]
[1753901242824,3.55,3791.1,3789.6,4.389]
[1753901243001,3.55,3790.7,3789.6,4.389]
[1753901243202,0.132,3789.7,3789.6,4.389]
[1753901243742,0.002,3791.6,3789.7,0.9712]
[1753901244034,0.132,3790.4,3790.1,3.60958986]
[1753901244182,0.132,3790.4,3790.2,4.40128086]
[1753901244383,0.132,3790.4,3790.2,4.388]
[1753901244586,0.132,3790.4,3790.3,3.61201358]
[1753901244934,0.132,3790.9,3790.4,2.63822209]
[1753901245235,0.002,3791.6,3790.7,2.63797693]
[1753901245467,0.002,3791.6,3790.0,7.14678473]
[1753901245468,0.132,3791.3,3790.8,4.40126625]
[1753901245728,0.002,3791.6,3791.5,2.63747857]
[1753901245884,0.002,3791.6,3791.5,7.93117857]
[1753901246214,0.172,3792.9,3792.0,0.9057]
[1753901246413,0.172,3792.9,3792.8,3.54227456]
[1753901246414,0.04,3792.9,3792.8,3.54227456]
[1753901246727,0.04,3792.9,3792.8,5.4257]
[1753901246932,0.04,3792.9,3792.8,5.2937]
[1753901247284,0.04,3792.9,3792.8,0.9057]
[1753901247638,0.172,3792.9,3792.1,0.9825]
[1753901247785,0.04,3792.9,3792.2,4.388]
[1753901248184,0.132,3792.3,3792.2,4.388]
[1753901248384,0.04,3792.9,3792.2,4.40124607]
[1753901248688,0.132,3792.6,3792.3,2.63692218]
[1753901248890,0.172,3792.9,3792.5,2.63676327]
[1753901249088,0.172,3792.9,3792.6,0.01323842]
[1753901249303,0.04,3792.9,3792.7,4.387]
[1753901250283,0.04,3792.9,3792.6,0.132]
[1753901250487,0.04,3792.9,3792.7,4.387]
[1753901250821,0.04,3792.9,3792.1,0.99573947]
[1753901250822,0.04,3792.9,3792.8,4.387]
[1753901251127,0.04,3792.9,3792.8,4.386]
[1753901251423,0.172,3792.9,3792.8,4.386]
[1753901252317,0.172,3792.9,3792.8,5.3411]
[1753901252523,0.04,3792.9,3792.8,7.97767456]
[1753901252692,0.132,3793.7,3792.9,3.8949]
[1753901252891,0.132,3793.8,3793.0,0.8949]
[1753901253115,0.04,3793.9,3793.5,0.8949]
[1753901253344,0.04,3793.9,3793.6,7.16717742]
[1753901253542,0.04,3793.9,3793.6,4.518]
[1753901253751,0.04,3793.9,3793.6,0.132]
[1753901253913,0.04,3793.9,3793.7,4.39922]
[1753901254261,0.04,3793.9,3793.8,6.70377959]
[1753901254613,0.04,3793.9,3793.8,3.58947959]
[1753901254812,0.04,3793.9,3791.1,4.088193]
[1753901254813,1.584,3793.5,3791.1,4.088193]
[1753901255058,2.92143468,3792.7,3787.1,0.0358]
[1753901255359,0.55,3788.9,3787.1,0.0358]
[1753901255524,0.1366,3787.2,3784.3,0.7622]
[1753901255724,29.977182,3785.6,3784.4,5.012]
[1753901255937,29.977182,3786.1,3784.5,5.014]
[1753901256139,0.55,3785.6,3784.3,0.7622]
[1753901256317,29.977182,3785.4,3784.3,0.498]
[1753901256639,0.55,3785.6,3784.3,0.498]
[1753901256640,59.977182,3785.2,3784.3,0.498]
[1753901256842,29.977182,3785.2,3784.1,0.04]
[1753901257025,1.5035,3785.6,3783.1,0.95452204]
[1753901257026,29.977182,3784.8,3783.1,0.95452204]
[1753901257225,29.977182,3784.8,3783.2,5.084]
[1753901257427,29.977182,3784.8,3783.1,0.95452204]
[1753901257657,30.0,3784.7,3783.3,5.084]
[1753901257857,3.0,3784.6,3783.4,5.08]
[1753901258157,29.977182,3784.3,3783.4,5.08]
[1753901258317,3.0,3784.5,3783.4,5.08]
[1753901258517,29.977182,3784.4,3783.4,5.08]
[1753901258810,29.977182,3784.8,3783.4,5.08]
[1753901259011,29.977182,3785.0,3783.4,5.08]
[1753901259328,29.977182,3785.0,3783.6,0.9901]
[1753901259544,29.977182,3784.8,3783.7,0.01338651]
[1753901259853,29.96379549,3783.6,3783.1,0.95452204]
[1753901260058,29.96379549,3783.2,3783.1,0.95452204]
[1753901260260,32.96379549,3783.2,3783.1,0.95452204]
[1753901260576,29.96379549,3783.4,3783.1,0.95452204]
[1753901260775,3.0,3784.6,3783.2,0.9071]
[1753901260974,29.96379549,3784.3,3783.2,0.9071]
[1753901261144,29.96379549,3784.1,3783.2,0.9071]
[1753901261471,29.96379549,3783.7,3783.3,5.08]
[1753901261671,3.0,3784.0,3783.3,5.08]
[1753901261874,3.0,3784.0,3783.1,0.95452204]
[1753901261875,3.0,3783.8,3783.1,0.95452204]
[1753901262073,32.96379549,3783.2,3783.1,0.95452204]
[1753901262275,5.276555,3782.9,3782.5,0.5]
[1753901262444,29.00927345,3782.7,3782.5,0.5]
[1753901262775,29.00927345,3782.8,3782.5,0.5]
[1753901262935,33.0,3782.6,3782.5,0.5]
[1753901263140,32.00927345,3782.6,3782.5,0.5]
[1753901263504,0.9605,3782.7,3782.1,1e-08]
[1753901263505,3.0,3782.3,3782.1,1e-08]
[1753901263633,32.00927345,3782.2,3782.1,1e-08]
[1753901264751,59.00377715,3781.5,3780.9,5.124]
[1753901264962,29.00377715,3781.3,3780.7,0.9544]
[1753901265172,29.13577715,3781.2,3780.7,0.9544]
[1753901265372,29.13577715,3781.2,3780.4,5.118]
[1753901265588,58.96377715,3781.0,3780.1,5.159]
[1753901265874,58.96377715,3781.0,3780.1,0.04]
[1753901265875,28.96377715,3780.6,3780.1,0.04]
[1753901266098,28.96377715,3780.3,3780.1,0.04]
[1753901266240,2.57026461,3781.2,3778.7,6.595]
[1753901266241,21.40006115,3780.1,3778.7,6.595]
[1753901266434,28.92377715,3780.0,3778.8,5.116]
[1753901266636,28.92377715,3779.8,3778.8,5.116]
[1753901266878,28.92377715,3779.7,3778.8,5.116]
[1753901267082,2.57026461,3781.2,3778.8,5.116]
[1753901267083,28.92377715,3779.5,3778.8,5.116]
[1753901267238,24.67011245,3779.4,3779.0,7.17694569]
[1753901267433,24.67011245,3781.1,3779.2,5.122]
[1753901267639,24.67011245,3781.8,3779.8,2.6456059]
[1753901267838,0.9018,3781.9,3779.9,5.119]
[1753901267839,24.67011245,3781.6,3779.9,5.119]
[1753901268151,24.67011245,3782.6,3780.2,7.17614569]
[1753901268356,6.44856045,3782.1,3779.3,0.55]
[1753901268578,24.67011245,3781.9,3779.4,7.17694569]
[1753901268753,3.0,3781.6,3779.5,2.64585262]
[1753901268956,24.67011245,3781.3,3779.6,5.147]
[1753901269149,24.67011245,3781.3,3779.7,2.64570806]
[1753901269338,24.67011245,3781.3,3779.4,7.17694569]
[1753901269537,24.67011245,3781.8,3779.6,3.0]
[1753901269737,24.67011245,3781.8,3780.8,2.64490433]
[1753901269991,24.67011245,3781.8,3781.0,2.64480296]
[1753901270293,24.67011245,3781.8,3781.0,0.9479]
[1753901270636,24.67011245,3781.8,3781.1,2.64469669]
[1753901270843,24.67011245,3781.8,3781.0,3.59268994]
[1753901271053,24.67011245,3781.8,3781.2,5.137]
[1753901271588,24.67011245,3781.8,3781.0,0.9479]
[1753901271834,24.67011245,3781.8,3781.1,5.135]
[1753901271971,24.67011245,3781.8,3781.0,0.9479]
[1753901272289,24.67011245,3781.8,3781.1,5.13]
[1753901272644,24.67011245,3781.8,3781.0,0.9479]
[1753901273005,24.67011245,3781.8,3781.2,5.126]
[1753901273460,24.67011245,3781.8,3781.3,5.123]
[1753901274551,24.67011245,3781.8,3781.7,2.6443134]
[1753901275570,24.67011245,3781.8,3781.7,2.7763134]
[1753901276155,24.67011245,3781.8,3781.7,7.8753134]
[1753901276677,24.67011245,3781.8,3781.7,5.095]
[1753901277187,24.67011245,3781.8,3781.6,5.09]
[1753901277387,24.80211245,3781.7,3781.6,5.09]
[1753901277543,19.0685807,3781.7,3781.6,7.73438332]
[1753901277886,19.0685807,3781.8,3781.7,3.6217134]
[1753901278379,0.04,3781.9,3781.8,2.64424348]
[1753901278804,0.04,3781.9,3781.8,7.72924348]
[1753901279005,0.04,3781.9,3781.8,5.082]
[1753901279158,0.04,3781.9,3779.8,8.15434569]
[1753901279370,0.04,3781.9,3780.0,0.9774]
[1753901279575,0.04,3781.9,3780.1,5.096]
[1753901279779,30.0,3781.8,3780.1,5.096]
[1753901280004,0.04,3781.9,3780.1,5.096]
[1753901280166,3.0,3781.7,3780.1,5.096]
[1753901280371,30.0,3781.6,3780.1,5.096]
[1753901280683,3.0,3781.7,3780.0,0.9774]